fUSD/lending_fUSD_20251014
["ID","MTS","AMOUNT","RATE_DAILY","PERIOD"]
[391246473,1760425933105,-500.0,0.00027397,7]
[391246474,1760425933114,-764.95,0.00027397,7]
[391246475,1760425933123,-500.0,0.00027397,7]
[391246476,1760425933132,-764.95,0.00027397,7]
[391246477,1760425933141,-500.0,0.00027397,7]
[391246478,1760425933149,-500.0,0.00027397,7]
[391246479,1760425933158,-764.95,0.00027397,7]
[391246480,1760425933166,-500.0,0.00027397,7]
[391246481,1760425933174,-500.0,0.00027397,7]
[391246482,1760425933182,-764.95,0.00027397,7]
[391246483,1760425933191,-500.0,0.00027397,7]
[391246484,1760425933202,-500.0,0.00027397,7]
[391246485,1760425933210,-500.0,0.00027397,7]
[391246486,1760425933219,-500.0,0.00027397,7]
[391246487,1760425933230,-764.95,0.00027397,7]
[391246488,1760425933239,-500.0,0.00027397,7]
[391246489,1760425933249,-500.0,0.00027397,7]
[391246490,1760425933259,-764.95,0.00027397,7]
[391246491,1760425933268,-500.0,0.00027397,7]
[391246492,1760425933278,-500.0,0.00027397,7]
[391246493,1760425933286,-764.95,0.00027397,7]
[391246494,1760425933295,-500.0,0.00027397,7]
[391246495,1760425933305,-764.95,0.00027397,7]
[391246496,1760425933315,-500.0,0.00027397,7]
[391246497,1760425933324,-764.95,0.00027397,7]
[391246498,1760425933333,-500.0,0.00027397,7]
[391246499,1760425933342,-500.0,0.00027397,7]
[391246500,1760425933351,-500.0,0.00027397,7]
[391246501,1760425933360,-764.95,0.00027397,7]
[391246502,1760425933370,-500.0,0.00027397,7]
[391246503,1760425933379,-500.0,0.00027397,7]
[391246504,1760425933389,-764.95,0.00027397,7]
[391246505,1760425933400,-500.0,0.00027397,7]
[391246506,1760425933411,-500.0,0.00027397,7]
[391246507,1760425933419,-500.0,0.00027397,7]
[391246508,1760425933428,-764.95,0.00027397,7]
[391246509,1760425933438,-557.50804548,0.00027397,7]
[391246510,1760425933450,-500.0,0.00027397,7]
[391246511,1760425933459,-500.0,0.00027397,7]
[391246512,1760425933468,-764.95,0.00027397,7]
[391246513,1760425933478,-500.0,0.00027397,7]
[391246514,1760425933487,-500.0,0.00027397,7]
[391246515,1760425933495,-764.95,0.00027397,7]
[391246516,1760425933505,-500.0,0.00027397,7]
[391246517,1760425933513,-500.0,0.00027397,7]
[391246518,1760425933524,-764.95,0.00027397,7]
[391246519,1760425933535,-500.0,0.00027397,7]
[391246520,1760425933544,-500.0,0.00027397,7]
[391246521,1760425933553,-764.95,0.00027397,7]
[391246522,1760425933562,-500.0,0.00027397,7]
[391246523,1760425933571,-500.0,0.00027397,7]
[391246524,1760425933580,-764.95,0.00027397,7]
[391246525,1760425933588,-500.0,0.00027397,7]
[391246526,1760425933597,-764.95,0.00027397,7]
[391246527,1760425933607,-202.6,0.00027397,7]
[391246528,1760425933615,-500.0,0.00027397,7]
[391246529,1760425933624,-764.95,0.00027397,7]
[391246530,1760425933633,-555.62,0.00027397,7]
[391246531,1760425933642,-764.95,0.00027397,7]
[391246532,1760425933651,-500.0,0.00027397,7]
[391246533,1760425933660,-555.62,0.00027397,7]
[391246534,1760425933670,-764.98849062,0.00027397,7]
[391246535,1760425933681,-555.62,0.00027397,7]
[391246536,1760425933690,-500.0,0.00027397,7]
[391246537,1760425933713,-555.62,0.00027397,7]
[391246538,1760425933722,-500.0,0.00027397,7]
[391246539,1760425933731,-555.62,0.00027397,7]
[391246540,1760425933741,-555.62,0.00027397,7]
[391246541,1760425933752,-555.62,0.00027397,7]
[391246542,1760425933763,-555.62,0.00027397,7]
[391246543,1760425933772,-1098.63,0.00027397,7]
[391246544,1760425933782,-555.62,0.00027397,7]
[391246545,1760425933791,-1098.63,0.00027397,7]
[391246546,1760425933800,-555.62,0.00027397,7]
[391246547,1760425933809,-555.62,0.00027397,7]
[391246548,1760425933819,-500.0,0.00027397,7]
[391246549,1760425933828,-500.0,0.00027397,7]
[391246550,1760425933838,-555.62,0.00027397,7]
[391246551,1760425933848,-555.62,0.00027397,7]
[391246552,1760425933857,-500.0,0.00027397,7]
[391246553,1760425933867,-555.62,0.00027397,7]
[391246554,1760425933876,-500.0,0.00027397,7]
[391246555,1760425933885,-500.0,0.00027397,7]
[391246556,1760425933894,-500.0,0.00027397,7]
[391246557,1760425933903,-555.62,0.00027397,7]
[391246558,1760425933913,-500.0,0.00027397,7]
[391246559,1760425933922,-500.0,0.00027397,7]
[391246561,1760425933931,-555.62,0.00027397,7]
[391246562,1760425933941,-500.0,0.00027397,7]
[391246563,1760425933951,-500.0,0.00027397,7]
[391246564,1760425933961,-555.62,0.00027397,7]
[391246565,1760425933970,-500.0,0.00027397,7]
[391246566,1760425933979,-500.0,0.00027397,7]
[391246567,1760425933989,-555.62,0.00027397,7]
[391246568,1760425933999,-500.0,0.00027397,7]
[391246569,1760425934012,-500.0,0.00027397,7]
[391246570,1760425934022,-555.62,0.00027397,7]
[391246571,1760425934031,-555.62,0.00027397,7]
[391246572,1760425934040,-1682.07,0.00027397,7]
[391246573,1760425934050,-500.0,0.00027397,7]
[391246574,1760425934060,-1682.07,0.00027397,7]
[391246575,1760425934070,-500.0,0.00027397,7]
[391246576,1760425934080,-1682.07,0.00027397,7]
[391246577,1760425934089,-1682.07,0.00027397,7]
[391246578,1760425934099,-555.62,0.00027397,7]
[391246579,1760425934108,-500.0,0.00027397,7]
[391246580,1760425934117,-1682.07,0.00027397,7]
[391246581,1760425934127,-500.0,0.00027397,7]
[391246582,1760425934136,-1682.07,0.00027397,7]
[391246583,1760425934147,-500.0,0.00027397,7]
[391246584,1760425934157,-555.62,0.00027397,7]
[391246585,1760425934169,-1682.07,0.00027397,7]
[391246586,1760425934181,-500.0,0.00027397,7]
[391246587,1760425934194,-555.62,0.00027397,7]
[391246588,1760425934204,-1682.07,0.00027397,7]
[391246589,1760425934214,-500.0,0.00027397,7]
[391246590,1760425934223,-555.75362939,0.00027397,7]
[391246591,1760425934234,-1682.07,0.00027397,7]
[391246592,1760425934244,-500.0,0.00027397,7]
[391246593,1760425934253,-1682.07,0.00027397,7]
[391246594,1760425934263,-500.0,0.00027397,7]
[391246595,1760425934273,-1682.07,0.00027397,7]
[391246596,1760425934284,-310.29336094,0.00027397,7]
[391246597,1760425934295,-1682.07,0.00027397,7]
[391246598,1760425934307,-151.0,0.00027397,7]
[391246599,1760425934318,-1682.07,0.00027397,7]
[391246600,1760425934327,-151.0,0.00027397,7]
[391246602,1760425934337,-1682.07,0.00027397,7]
[391246603,1760425934347,-1682.07,0.00027397,7]
[391246604,1760425934356,-151.0,0.00027397,7]
[391246605,1760425934366,-500.0,0.00027397,7]
[391246606,1760425934375,-1682.07,0.00027397,7]
[391246607,1760425934385,-2031.91,0.00027397,7]
[391246608,1760425934395,-2031.91,0.00027397,7]
[391246609,1760425934403,-1682.07,0.00027397,7]
[391246610,1760425934413,-616.38821839,0.00027397,7]
[391246611,1760425934422,-2031.91,0.00027397,7]
[391246612,1760425934431,-1682.07,0.00027397,7]
[391246613,1760425934441,-500.0,0.00027397,7]
[391246614,1760425934452,-2031.91,0.00027397,7]
[391246615,1760425934460,-500.0,0.00027397,7]
[391246616,1760425934469,-2031.91,0.00027397,7]
[391246617,1760425934477,-1682.07,0.00027397,7]
[391246618,1760425934486,-500.0,0.00027397,7]
[391246619,1760425934495,-2031.91,0.00027397,7]
[391246620,1760425934503,-500.0,0.00027397,7]
[391246621,1760425934512,-2031.91,0.00027397,7]
[391246622,1760425934522,-1682.07,0.00027397,7]
[391246623,1760425934532,-500.0,0.00027397,7]
[391246624,1760425934542,-2031.91,0.00027397,7]
[391246625,1760425934551,-1682.07,0.00027397,7]
[391246626,1760425934560,-500.0,0.00027397,7]
[391246627,1760425934570,-2031.91,0.00027397,7]
[391246628,1760425934579,-1682.07,0.00027397,7]
[391246629,1760425934589,-500.0,0.00027397,7]
[391246630,1760425934598,-2031.91,0.00027397,7]
[391246631,1760425934607,-1682.07,0.00027397,7]
[391246632,1760425934616,-500.0,0.00027397,7]
[391246633,1760425934626,-2031.91,0.00027397,7]
[391246634,1760425934636,-500.0,0.00027397,7]
[391246635,1760425934646,-2031.91,0.00027397,7]
[391246636,1760425934655,-1682.2092833,0.00027397,7]
[391246637,1760425934664,-500.0,0.00027397,7]
[391246638,1760425934675,-2031.91,0.00027397,7]
[391246639,1760425934689,-500.0,0.00027397,7]
[391246640,1760425934702,-2031.91,0.00027397,7]
[391246641,1760425934712,-2031.91,0.00027397,7]
[391246642,1760425934722,-500.0,0.00027397,7]
[391246643,1760425934732,-2031.91,0.00027397,7]
[391246644,1760425934741,-500.0,0.00027397,7]
[391246645,1760425934751,-2031.91,0.00027397,7]
[391246646,1760425934762,-500.0,0.00027397,7]
[391246647,1760425934772,-1269.93,0.00027397,7]
[391246648,1760425934782,-2031.91,0.00027397,7]
[391246649,1760425934792,-170.1,0.00027397,7]
[391246650,1760425934803,-1269.93,0.00027397,7]
[391246651,1760425934812,-2031.91,0.00027397,7]
[391246652,1760425934822,-500.0,0.00027397,7]
[391246653,1760425934832,-2031.91,0.00027397,7]
[391246654,1760425934842,-1269.93,0.00027397,7]
[391246655,1760425934852,-500.0,0.00027397,7]
[391246656,1760425934862,-2031.91,0.00027397,7]
[391246657,1760425934872,-1269.93,0.00027397,7]
[391246658,1760425934882,-500.0,0.00027397,7]
[391246659,1760425934892,-1269.93,0.00027397,7]
[391246660,1760425934902,-2031.91,0.00027397,7]
[391246661,1760425934913,-400.51124371,0.00027397,7]
[391246662,1760425934923,-1269.93,0.00027397,7]
[391246663,1760425934934,-2031.91,0.00027397,7]
[391246664,1760425934945,-2032.14568066,0.00027397,7]
[391246665,1760425934955,-2135.89,0.00027397,7]
[391246666,1760425934965,-1269.93,0.00027397,7]
[391246667,1760425934975,-456.56606471,0.00027397,7]
[391246668,1760425935159,-1679.32393529,0.00027397,7]
[391246669,1760425935170,-1269.93,0.00027397,7]
[391246670,1760425935180,-2135.89,0.00027397,7]
[391246671,1760425935191,-1269.93,0.00027397,7]
[391246672,1760425935204,-2135.89,0.00027397,7]
[391246673,1760425935215,-1269.93,0.00027397,7]
[391246674,1760425935226,-2135.89,0.00027397,7]
[391246675,1760425935236,-1269.93,0.00027397,7]
[391246676,1760425935248,-2135.89,0.00027397,7]
[391246677,1760425935258,-1269.93,0.00027397,7]
[391246678,1760425935268,-2135.89,0.00027397,7]
[391246679,1760425935278,-2135.89,0.00027397,7]
[391246680,1760425935287,-1269.93,0.00027397,7]
[391246681,1760425935297,-2135.89,0.00027397,7]
[391246682,1760425935307,-1269.93,0.00027397,7]
[391246683,1760425935316,-2135.89,0.00027397,7]
[391246684,1760425935326,-2135.89,0.00027397,7]
[391246685,1760425935336,-1269.93,0.00027397,7]
[391246686,1760425935347,-151.0,0.00027397,7]
[391246687,1760425935358,-2135.89,0.00027397,7]
[391246688,1760425935368,-1269.93,0.00027397,7]
[391246689,1760425935379,-151.0,0.00027397,7]
[391246690,1760425935388,-2135.89,0.00027397,7]
[391246691,1760425935398,-1269.93,0.00027397,7]
[391246692,1760425935408,-500.0,0.00027397,7]
[391246693,1760425935418,-151.0,0.00027397,7]
[391246694,1760425935428,-2135.89,0.00027397,7]
[391246695,1760425935439,-1269.93,0.00027397,7]
[391246696,1760425935452,-151.0,0.00027397,7]
[391246697,1760425935461,-500.0,0.00027397,7]
[391246698,1760425935471,-2135.89,0.00027397,7]
[391246699,1760425935481,-1269.93,0.00027397,7]
[391246700,1760425935491,-151.0,0.00027397,7]
[391246701,1760425935500,-151.0,0.00027397,7]
[391246702,1760425935510,-271.72583799,0.00027397,7]
[391246703,1760425935534,-228.27416201,0.00027397,7]
[391246704,1760425935545,-895.43823134,0.00027397,7]
[391246705,1760425935557,-431.885,0.00027397,7]
[391246706,1760425935574,-808.56676866,0.00027397,7]
[391246707,1760425935584,-141.08323134,0.00027397,7]
[391246708,1760425935602,-1128.84676866,0.00027397,7]
[391246709,1760425935612,-248.852135,0.00027397,7]
[391246710,1760425935622,-500.0,0.00027397,7]
[391246711,1760425935632,-151.0,0.00027397,7]
[391246712,1760425935641,-2135.89,0.00027397,7]
[391246713,1760425935651,-1269.93,0.00027397,7]
[391246714,1760425935661,-2135.89,0.00027397,7]
[391246715,1760425935671,-1269.93,0.00027397,7]
[391246716,1760425935683,-151.0,0.00027397,7]
[391246717,1760425935698,-2135.89,0.00027397,7]
[391246718,1760425935707,-500.0,0.00027397,7]
[391246719,1760425935718,-151.0,0.00027397,7]
[391246720,1760425935730,-1269.93,0.00027397,7]
[391246721,1760425935741,-2135.89,0.00027397,7]
[391246722,1760425935750,-500.0,0.00027397,7]
[391246723,1760425935761,-1270.01,0.00027397,7]
[391246724,1760425935771,-2135.89,0.00027397,7]
[391246725,1760425935781,-500.0,0.00027397,7]
[391246726,1760425935790,-151.0,0.00027397,7]
[391246727,1760425935800,-2135.89,0.00027397,7]
[391246728,1760425935810,-500.0,0.00027397,7]
[391246729,1760425935820,-2135.89,0.00027397,7]
[391246730,1760425935830,-151.0,0.00027397,7]
[391246731,1760425935840,-500.0,0.00027397,7]
[391246732,1760425935850,-2136.06687261,0.00027397,7]
[391246733,1760425935860,-500.0,0.00027397,7]
[391246734,1760425935870,-181.875972,0.00027397,7]
[391246735,1760425935880,-384.28264771,0.00027397,7]
[391246736,1760425935890,-500.0,0.00027397,7]
[391246737,1760425935901,-500.0,0.00027397,7]
[391246738,1760425935911,-500.0,0.00027397,7]
[391246739,1760425935921,-500.0,0.00027397,7]
[391246740,1760425935931,-500.0,0.00027397,7]
[391246741,1760425935942,-563.34,0.00027397,7]
[391246742,1760425935954,-500.0,0.00027397,7]
[391246743,1760425935964,-500.0,0.00027397,7]
[391246744,1760425935975,-563.34,0.00027397,7]
[391246745,1760425935985,-500.0,0.00027397,7]
[391246746,1760425935995,-500.0,0.00027397,7]
[391246747,1760425936005,-563.34,0.00027397,7]
[391246748,1760425936015,-500.0,0.00027397,7]
[391246749,1760425936026,-323.27254911,0.00027397,7]
[391246750,1760425936036,-563.34,0.00027397,7]
[391246751,1760425936046,-390.71383769,0.00027397,7]
[391246752,1760425936056,-563.34,0.00027397,7]
[391246753,1760425936066,-563.34,0.00027397,7]
[391246754,1760425936076,-1251.56,0.00027397,2]
[391246755,1760425936086,-563.34,0.00027397,7]
[391246756,1760425936096,-1251.56,0.00027397,2]
[391246757,1760425936106,-563.34,0.00027397,7]
[391246758,1760425936117,-530.21923472,0.00027397,7]
[391246759,1760425936151,-33.12076528,0.00027397,7]
[391246760,1760425936161,-1174.70125653,0.00027397,2]
[391246761,1760425936173,-76.85874347,0.00027397,2]
[391246762,1760425936183,-402.98883093,0.00027397,7]
[391246763,1760425936197,-160.35116907,0.00027397,7]
[391246764,1760425936206,-1251.56,0.00027397,2]
[391246765,1760425936216,-151.0,0.00027397,7]
[391246766,1760425936226,-197.78177815,0.00027397,7]
[391246767,1760425936239,-1709.70822185,0.00027397,7]
[391246768,1760425936249,-563.34,0.00027397,7]
[391246769,1760425936258,-1251.56,0.00027397,2]
[391246770,1760425936268,-151.0,0.00027397,7]
[391246771,1760425936278,-1907.49,0.00027397,7]
[391246772,1760425936287,-563.34,0.00027397,7]
[391246773,1760425936297,-1251.56,0.00027397,2]
[391246774,1760425936307,-1907.49,0.00027397,7]
[391246775,1760425936316,-151.0,0.00027397,7]
[391246776,1760425936326,-479.1690096,0.00027397,7]
[391246777,1760425936341,-84.1709904,0.00027397,7]
[391246778,1760425936350,-1182.47375131,0.00027397,2]
[391246779,1760425936362,-69.08624869,0.00027397,2]
[391246780,1760425936371,-153.091812,0.00027397,7]
[391246781,1760425936381,-1184.70806937,0.00027397,7]
[391246946,1760426218153,1000.0,0.00027397,120]
[391246947,1760426225627,1000.0,0.00027397,120]
[391246948,1760426232304,1000.0,0.00027397,120]
[391246949,1760426239031,1000.0,0.00027397,120]
[391246950,1760426248280,1000.0,0.00027397,120]
[391246951,1760426255270,1000.0,0.00027397,120]
[391246952,1760426272087,773.0,0.00027397,120]
[391246957,1760426407637,209.60313274,0.00024679,120]
[391246971,1760426465216,150.0,0.00024814,120]
[391247055,1760426800916,35555.66859459,0.00027397,120]
[391247068,1760426870042,200.0,0.00027397,120]
[391247075,1760426950858,600.0,0.00010627,2]
[391247076,1760426950886,400.1,0.00010627,2]
[391247077,1760426951056,1000.1,0.00011186,2]
[391247078,1760426951253,1000.1,0.00011745,2]
[391247079,1760426951454,1000.1,0.00012305,2]
[391247080,1760426960949,-300.04823856,0.00012864,2]
[391247081,1760426963097,-335.28130756,0.00012864,2]
[391247082,1760426965093,-364.77045388,0.00012864,2]
[391247083,1760426965118,-785.3901151,0.00013423,2]
[391247084,1760426972040,150.44548809,0.00027397,120]
[391247095,1760427032398,-214.7098849,0.00013423,2]
[391247096,1760427032407,-335.28130756,0.00013966,2]
[391247097,1760427032416,-1000.1,0.00013982,2]
[391247098,1760427032424,-741.7469283,0.0001421,7]
[391247099,1760427032433,-700.0,0.000145,5]
[391247100,1760427032441,-1000.1,0.00014542,2]
[391247101,1760427032450,-1500.0,0.000146,5]
[391247102,1760427032459,-2300.0,0.000147,5]
[391247103,1760427032468,-1043.0,0.00014799,2]
[391247104,1760427032477,-300.0,0.00014799,2]
[391247105,1760427032486,-3100.0,0.000148,5]
[391247106,1760427032495,-3900.0,0.000149,5]
[391247107,1760427032504,-489.18043736,0.000149,2]
[391247108,1760427032513,-156.76562409,0.000149,2]
[391247109,1760427032522,-348.06807472,0.000149,2]
[391247110,1760427032531,-517.06723113,0.00014973,2]
[391247111,1760427032540,-504.80717165,0.00014973,2]
[391247112,1760427032549,-500.0,0.00014973,2]
[391247113,1760427032558,-500.0,0.00014973,2]
[391247114,1760427032568,-150.0,0.00014998,2]
[391247115,1760427032577,-224.84818556,0.00014999,2]
[391247116,1760427032586,-223.71632517,0.00014999,2]
[391247117,1760427032595,-500.0,0.00014999,2]
[391247118,1760427032605,-455.95473245,0.00014999,2]
[391247119,1760427032614,-500.0,0.00014999,2]
[391247120,1760427032623,-500.0,0.00014999,2]
[391247121,1760427032632,-500.0,0.00014999,2]
[391247122,1760427032643,-500.0,0.00014999,2]
[391247123,1760427032654,-500.0,0.00014999,2]
[391247124,1760427032664,-326.126,0.00014999,2]
[391247125,1760427032674,-500.0,0.00014999,2]
[391247127,1760427032684,-301.16033743,0.00014999,2]
[391247129,1760427032693,-500.0,0.00014999,2]
[391247131,1760427032702,-500.0,0.00014999,2]
[391247133,1760427032711,-500.0,0.00014999,2]
[391247135,1760427032720,-401.5201188,0.00014999,2]
[391247137,1760427032729,-6132.16048652,0.00015,2]
[391247138,1760427032741,-40133.74720846,0.00015,2]
[391247141,1760427032879,-1684.50551895,0.00015,2]
[391247143,1760427032900,-382.35999,0.00015,2]
[391247149,1760427038365,-30853.96025294,0.00015,2]
[391247150,1760427038452,-331.241408,0.00015,2]
[391247151,1760427038677,-26051.69332626,0.00015,2]
[391247152,1760427038689,-4412.7388517,0.00015,2]
[391247338,1760427040630,-2054.86838987,0.00015,2]
[391247342,1760427040660,-7315.2,0.00015,2]
[391247344,1760427040671,-11914.712,0.00015,2]
[391247347,1760427040682,-3770.90089442,0.00015,2]
[391247349,1760427040693,-9684.77592297,0.00015,2]
[391247352,1760427040712,-2034608.05609384,0.00015,2]
[391247362,1760427040798,-2246.2,0.00015,2]
[391247655,1760427043503,-2348.2,0.00015,2]
[391247683,1760427043640,-1123.1,0.00015,2]
[391247688,1760427043654,-818.35140669,0.00015,2]
[391247691,1760427043665,-1767.7686502,0.00015,2]
[391247733,1760427043887,-1031.64859331,0.00015,2]
[391247735,1760427043901,-25507.31148106,0.00015,2]
[391247737,1760427043913,-2300.52100057,0.00015,2]
[391247739,1760427043924,-2445.09886678,0.00015,2]
[391247741,1760427043935,-532.03,0.00015,2]
[391247744,1760427043946,-3323.05287521,0.00015,2]
[391247746,1760427043957,-500.46701949,0.00015,2]
[391248004,1760427046416,-3939.33657429,0.00015,2]
[391248013,1760427046472,-379.12940536,0.00015,2]
[391248017,1760427046484,-2007.12817063,0.00015,2]
[391248020,1760427046495,-612.84989598,0.00015,2]
[391248023,1760427046506,-327.410967,0.00015,2]
[391248027,1760427046517,-701.58788103,0.00015,2]
[391248036,1760427046623,-25701.57716047,0.00015,2]
[391248037,1760427046634,-2405.62392344,0.00015,2]
[391248038,1760427046648,-802855.05297688,0.00015,2]
[391248039,1760427046667,-22467.957291,0.00015,2]
[391248041,1760427046678,-4024.7,0.00015,2]
[391248045,1760427046707,-37520.0,0.00015,2]
[391248064,1760427046872,-11461.5853425,0.00015,2]
[391248146,1760427106211,-153.28346837,0.000147,2]
[391248147,1760427106791,-198.34373134,0.000147,2]
[391248149,1760427224780,1000.0,0.00027397,120]
[391248150,1760427225067,1000.0,0.00027397,120]
[391248151,1760427225354,1000.0,0.00027397,120]
[391248152,1760427225934,822.868,0.00027397,120]
[391248156,1760427272893,273.20521,0.00027397,120]
[391248160,1760427300407,-2314.38780029,0.000147,2]
[391248161,1760427300429,-38.61219971,0.000147,2]
[391248165,1760427349271,1896.723,0.00027397,120]
[391248212,1760427906389,181.0,0.0002513,120]
[391248213,1760427907632,181.0,0.00026387,120]
[391248216,1760427922152,-150.0,0.00013488,2]
[391248217,1760427922175,-150.0,0.00013488,2]
[391248218,1760427922198,-24.88706747,0.00013488,2]
[391248252,1760428231669,-125.11293253,0.00013488,2]
[391248253,1760428231679,-269.65,0.00013699,2]
[391248254,1760428231689,-689.33012778,0.0001371,2]
[391248255,1760428231875,-402.83167222,0.0001371,2]
[391248256,1760428231885,-150.0,0.00013987,2]
[391248257,1760428231897,-150.0,0.00013987,2]
[391248258,1760428231906,-24.82642471,0.00014469,2]
[391248268,1760428237932,-411.68045322,0.00014469,2]
[391248269,1760428237943,-14.34647992,0.00014469,2]
[391248270,1760428237953,-150.0,0.00014487,2]
[391248272,1760428237963,-150.0,0.00014487,2]
[391248274,1760428237972,-819.81063728,0.00014754,2]
[391248276,1760428237982,-1951.35297579,0.00014836,2]
[391248277,1760428237994,-548.64702421,0.00014836,2]
[391248278,1760428238004,-337.73297579,0.00014849,2]
[391248279,1760428238015,-1416.15866498,0.00014849,2]
[391248280,1760428238026,-378.92035923,0.00014849,2]
[391248281,1760428238035,-300.0,0.00014849,2]
[391248282,1760428238044,-1200.0,0.00014849,2]
[391248283,1760428238054,-300.0,0.00014849,2]
[391248284,1760428238063,-34.46530583,0.0001485,2]
[391248285,1760428238078,-478.1962063,0.0001485,2]
[391248286,1760428238105,-1239.23805153,0.0001485,2]
[391248289,1760428239703,-1140.55084643,0.0001485,2]
[391248290,1760428239714,-7095.53355182,0.0001485,2]
[391248291,1760428239760,-388.945,0.0001485,2]
[391248292,1760428239772,-436.58647097,0.0001485,2]
[391248293,1760428239784,-331.06967471,0.0001485,2]
[391248294,1760428239939,-750.34978988,0.0001485,2]
[391248308,1760428244114,-1.6e-07,0.0001485,2]
[391248309,1760428244126,-1432.08853532,0.0001485,2]
[391248310,1760428244138,-2243.6784,0.0001485,2]
[391248311,1760428244546,-8370.26083122,0.0001485,2]
[391248312,1760428244557,-617.96,0.0001485,2]
[391248313,1760428244568,-952.4835028,0.0001485,2]
[391248315,1760428245636,-6533.38957986,0.0001485,2]
[391248316,1760428245646,-1000.0,0.00014899,2]
[391248317,1760428245657,-150.0,0.00014899,2]
[391248318,1760428245666,-221.0047035,0.000149,2]
[391248319,1760428245675,-9801.56124892,0.000149,2]
[391248320,1760428245685,-969.03669984,0.000149,2]
[391248321,1760428245694,-1022.85645624,0.000149,2]
[391248322,1760428245703,-806.95810583,0.000149,2]
[391248323,1760428245712,-500.0,0.00014973,2]
[391248324,1760428245721,-501.8937921,0.00014973,2]
[391248325,1760428245730,-500.0,0.00014973,2]
[391248326,1760428245739,-500.0,0.00014973,2]
[391248327,1760428245749,-500.0,0.00014973,2]
[391248328,1760428245758,-500.0,0.00014973,2]
[391248329,1760428245767,-720.17681872,0.00014985,2]
[391248330,1760428245777,-150.0,0.00014986,2]
[391248331,1760428245786,-150.0,0.00014986,2]
[391248332,1760428245795,-150.0,0.00014986,2]
[391248333,1760428245804,-151.0,0.00014991,2]
[391248334,1760428245813,-151.0,0.00014991,2]
[391248335,1760428245822,-151.0,0.00014991,2]
[391248336,1760428245832,-151.0,0.00014991,2]
[391248337,1760428245841,-200.0,0.00014991,2]
[391248338,1760428245850,-151.0,0.00014991,2]
[391248339,1760428245859,-176.47845399,0.00014991,2]
[391248340,1760428245868,-198.51614309,0.00014991,2]
[391248341,1760428245878,-200.0,0.00014991,2]
[391248342,1760428245887,-151.0,0.00014991,2]
[391248343,1760428245896,-151.0,0.00014991,2]
[391248344,1760428245906,-151.0,0.00014991,2]
[391248345,1760428245916,-151.0,0.00014991,2]
[391248346,1760428245925,-151.0,0.00014991,2]
[391248347,1760428245934,-151.0,0.00014991,2]
[391248349,1760428245943,-503.6975417,0.00014991,2]
[391248351,1760428245953,-245.91477656,0.00014991,2]
[391248353,1760428245962,-150.0,0.00014999,2]
[391248355,1760428245971,-199391.89145545,0.00015,2]
[391248358,1760428245986,-2457.35472213,0.00015,2]
[391248360,1760428245997,-5010.9590105,0.00015,2]
[391248362,1760428246008,-1136.82271602,0.00015,2]
[391248364,1760428246020,-1455.17,0.00015,2]
[391248366,1760428246031,-680.18316554,0.00015,2]
[391248610,1760428356649,1004.45611083,0.00027397,120]
[391248612,1760428383278,544.39,0.00027397,120]
[391248621,1760428645587,193.63171448,0.00027397,120]
[391248641,1760429149295,1111.0,0.00027397,120]
[391248642,1760429158861,559.0,0.00027397,120]